[Event "Titled Tuesday Blitz July 4 Early 2023"]
[White "Pranav, V"]
[Black "Skliarov, Viktor"]
[WhiteFideId "25060783"]
[BlackFideId "14106736"]
[WhiteElo "2997"]
[BlackElo "2617"]
[Result "1-0"]
[Round "3"]
[TimeControl "180+2"]
[Date "2023.07.04"]
[WhiteClock "0:00:17"]
[BlackClock "0:00:02"]
[Board "51"]

1. e4 {[%clk 0:03:00]}  c5 {[%clk 0:02:59]} 2. Nf3 {[%clk 0:03:01]}  Nc6 {[%clk 0:02:59]} 3. Bb5 {[%clk 0:03:01]}  e6 {[%clk 0:02:59]} 4. Bxc6 {[%clk 0:03:00]}  bxc6 {[%clk 0:02:59]} 5. O-O {[%clk 0:03:00]}  Ne7 {[%clk 0:02:59]} 6. d3 {[%clk 0:03:00]}  Ng6 {[%clk 0:02:59]} 7. Ng5 {[%clk 0:03:00]}  Be7 {[%clk 0:02:50]} 8. Qh5 {[%clk 0:02:56]}  Bxg5 {[%clk 0:02:45]} 9. Bxg5 {[%clk 0:02:55]}  f6 {[%clk 0:02:45]} 10. Be3 {[%clk 0:02:55]}  d6 {[%clk 0:02:45]} 11. f4 {[%clk 0:02:54]}  O-O {[%clk 0:02:45]} 12. Nd2 {[%clk 0:02:54]}  Rb8 {[%clk 0:02:32]} 13. b3 {[%clk 0:02:53]}  Qe8 {[%clk 0:02:29]} 14. Rae1 {[%clk 0:02:47]}  Ba6 {[%clk 0:02:19]} 15. Kh1 {[%clk 0:02:35]}  Rf7 {[%clk 0:02:06]} 16. Qh3 {[%clk 0:02:21]}  Bc8 {[%clk 0:01:54]} 17. Nc4 {[%clk 0:02:19]}  Qf8 {[%clk 0:01:46]} 18. Qg3 {[%clk 0:02:10]}  e5 {[%clk 0:01:22]} 19. f5 {[%clk 0:02:07]}  Nh8 {[%clk 0:01:22]} 20. c3 {[%clk 0:01:58]}  Ba6 {[%clk 0:01:21]} 21. Nb2 {[%clk 0:01:44]}  Rd7 {[%clk 0:00:58]} 22. Rf3 {[%clk 0:01:34]}  Nf7 {[%clk 0:00:50]} 23. h3 {[%clk 0:01:30]}  d5 {[%clk 0:00:47]} 24. Na4 {[%clk 0:01:28]}  d4 {[%clk 0:00:42]} 25. Bd2 {[%clk 0:01:10]}  dxc3 {[%clk 0:00:32]} 26. Bxc3 {[%clk 0:01:11]}  Rbd8 {[%clk 0:00:32]} 27. Nb2 {[%clk 0:01:09]}  c4 {[%clk 0:00:24]} 28. bxc4 {[%clk 0:00:34]}  Qa3 {[%clk 0:00:24]} 29. d4 {[%clk 0:00:35]}  exd4 {[%clk 0:00:14]} 30. Bxd4 {[%clk 0:00:35]}  Qd6 {[%clk 0:00:14]} 31. Qxd6 {[%clk 0:00:25]}  Rxd6 {[%clk 0:00:14]} 32. Bc3 {[%clk 0:00:23]}  Ne5 {[%clk 0:00:10]} 33. Bxe5 {[%clk 0:00:23]}  fxe5 {[%clk 0:00:11]} 34. Ra3 {[%clk 0:00:23]}  c5 {[%clk 0:00:09]} 35. Ree3 {[%clk 0:00:19]}  Rd2 {[%clk 0:00:04]} 36. Rxa6 {[%clk 0:00:19]}  Rxb2 {[%clk 0:00:04]} 37. Rxa7 {[%clk 0:00:19]}  Rf8 {[%clk 0:00:02]} 38. Rc7 {[%clk 0:00:17]}  Rf7 {[%clk 0:00:02]} 39. Rxc5 {[%clk 0:00:17]}  Rxa2 {[%clk 0:00:02]} 40. Rxe5 {[%clk 0:00:18]}  h6 {[%clk 0:00:02]} 41. Rc3 {[%clk 0:00:17]} 1-0


[Site "https://www.chess.com"]

[Event "Titled Tuesday Blitz July 4 Early 2023"]
[White "Subelj, Jan"]
[Black "Khismatullin, Denis"]
[WhiteFideId "14618583"]
[BlackFideId "4142578"]
[WhiteElo "2611"]
[BlackElo "2977"]
[Result "0-1"]
[Round "3"]
[TimeControl "180+2"]
[Date "2023.07.04"]
[WhiteClock "0:00:00"]
[BlackClock "0:00:35"]
[Board "53"]

1. e4 {[%clk 0:03:00]}  c5 {[%clk 0:03:00]} 2. Nf3 {[%clk 0:03:00]}  e6 {[%clk 0:02:59]} 3. d3 {[%clk 0:02:58]}  Nc6 {[%clk 0:02:59]} 4. Nbd2 {[%clk 0:02:59]}  Nf6 {[%clk 0:02:59]} 5. Be2 {[%clk 0:02:59]}  d5 {[%clk 0:02:59]} 6. O-O {[%clk 0:03:00]}  g6 {[%clk 0:02:59]} 7. c3 {[%clk 0:02:58]}  Qc7 {[%clk 0:02:59]} 8. exd5 {[%clk 0:02:55]}  Nxd5 {[%clk 0:02:59]} 9. Ne4 {[%clk 0:02:54]}  f5 {[%clk 0:02:58]} 10. Ned2 {[%clk 0:02:43]}  e5 {[%clk 0:02:54]} 11. Re1 {[%clk 0:02:42]}  Bg7 {[%clk 0:02:40]} 12. d4 {[%clk 0:02:39]}  cxd4 {[%clk 0:02:39]} 13. cxd4 {[%clk 0:02:40]}  e4 {[%clk 0:02:40]} 14. Bc4 {[%clk 0:02:39]}  Nce7 {[%clk 0:02:38]} 15. Ne5 {[%clk 0:02:36]}  O-O {[%clk 0:02:36]} 16. Qb3 {[%clk 0:02:16]}  Be6 {[%clk 0:02:28]} 17. f3 {[%clk 0:02:16]}  e3 {[%clk 0:02:20]} 18. Rxe3 {[%clk 0:02:15]}  b5 {[%clk 0:02:21]} 19. Bxb5 {[%clk 0:01:58]}  Rab8 {[%clk 0:02:15]} 20. Nxg6 {[%clk 0:01:51]}  Bxd4 {[%clk 0:01:51]} 21. Nxf8 {[%clk 0:01:39]}  Bxe3+ {[%clk 0:01:49]} 22. Kh1 {[%clk 0:01:38]}  Kxf8 {[%clk 0:01:46]} 23. Qd3 {[%clk 0:01:11]}  a6 {[%clk 0:01:23]} 24. Bxa6 {[%clk 0:01:07]}  Rb4 {[%clk 0:01:23]} 25. Nc4 {[%clk 0:00:57]}  Bxc1 {[%clk 0:01:18]} 26. Rxc1 {[%clk 0:00:58]}  Qc6 {[%clk 0:01:13]} 27. Qa3 {[%clk 0:00:47]}  Rb6 {[%clk 0:01:05]} 28. b3 {[%clk 0:00:13]}  Rxa6 {[%clk 0:01:05]} 29. Qb2 {[%clk 0:00:14]}  Ng6 {[%clk 0:01:01]} 30. Re1 {[%clk 0:00:10]}  Qc7 {[%clk 0:00:57]} 31. Qe2 {[%clk 0:00:09]}  Rc6 {[%clk 0:00:55]} 32. Qb2 {[%clk 0:00:07]}  Kg8 {[%clk 0:00:42]} 33. a4 {[%clk 0:00:06]}  Ndf4 {[%clk 0:00:41]} 34. Qd2 {[%clk 0:00:04]}  Bxc4 {[%clk 0:00:40]} 35. bxc4 {[%clk 0:00:03]}  Qd6 {[%clk 0:00:40]} 36. Qa5 {[%clk 0:00:02]}  Kg7 {[%clk 0:00:39]} 37. Qxf5 {[%clk 0:00:00]}  Rc5 {[%clk 0:00:35]} 0-1


[Site "https://www.chess.com"]

[Event "Titled Tuesday Blitz July 4 Early 2023"]
[White "Xiong, Jeffery"]
[Black "Krstulovic, Alex"]
[WhiteFideId "2047640"]
[BlackFideId "760056"]
[WhiteElo "2923"]
[BlackElo "2586"]
[Result "1-0"]
[Round "3"]
[TimeControl "180+2"]
[Date "2023.07.04"]
[WhiteClock "0:02:08"]
[BlackClock "0:00:02"]
[Board "54"]

1. e4 {[%clk 0:03:00]}  e5 {[%clk 0:02:58]} 2. Nf3 {[%clk 0:03:01]}  Nf6 {[%clk 0:02:58]} 3. Nc3 {[%clk 0:03:01]}  Nc6 {[%clk 0:02:58]} 4. d4 {[%clk 0:03:02]}  exd4 {[%clk 0:02:56]} 5. Nxd4 {[%clk 0:03:02]}  Bb4 {[%clk 0:02:56]} 6. Nxc6 {[%clk 0:03:03]}  bxc6 {[%clk 0:02:56]} 7. Bd3 {[%clk 0:03:04]}  O-O {[%clk 0:02:57]} 8. O-O {[%clk 0:03:04]}  d5 {[%clk 0:02:57]} 9. exd5 {[%clk 0:03:05]}  cxd5 {[%clk 0:02:57]} 10. h3 {[%clk 0:03:05]}  c6 {[%clk 0:02:57]} 11. Qf3 {[%clk 0:03:06]}  Be6 {[%clk 0:02:56]} 12. Bf4 {[%clk 0:03:06]}  Bd6 {[%clk 0:02:35]} 13. Ne2 {[%clk 0:03:07]}  h6 {[%clk 0:02:34]} 14. Rfd1 {[%clk 0:03:06]}  Re8 {[%clk 0:02:34]} 15. c4 {[%clk 0:03:06]}  Rb8 {[%clk 0:02:34]} 16. b3 {[%clk 0:03:06]}  a5 {[%clk 0:02:26]} 17. Nd4 {[%clk 0:03:05]}  Qc7 {[%clk 0:02:04]} 18. Bxh6 {[%clk 0:03:00]}  Be5 {[%clk 0:02:01]} 19. Be3 {[%clk 0:02:59]}  dxc4 {[%clk 0:01:42]} 20. bxc4 {[%clk 0:02:59]}  Rbd8 {[%clk 0:01:40]} 21. Nxe6 {[%clk 0:02:48]}  Rxe6 {[%clk 0:01:39]} 22. Rab1 {[%clk 0:02:49]}  c5 {[%clk 0:01:34]} 23. Rb7 {[%clk 0:02:30]}  Qc8 {[%clk 0:01:35]} 24. Rb5 {[%clk 0:02:29]}  Bd4 {[%clk 0:00:18]} 25. Bf5 {[%clk 0:02:28]}  Rxe3 {[%clk 0:00:18]} 26. fxe3 {[%clk 0:02:13]}  Bxe3+ {[%clk 0:00:18]} 27. Kh2 {[%clk 0:02:14]}  Qc7+ {[%clk 0:00:19]} 28. g3 {[%clk 0:02:13]}  Rxd1 {[%clk 0:00:13]} 29. Qxd1 {[%clk 0:02:14]}  g6 {[%clk 0:00:13]} 30. Bc2 {[%clk 0:02:10]}  Nh5 {[%clk 0:00:09]} 31. Qf3 {[%clk 0:02:09]}  Nxg3 {[%clk 0:00:10]} 32. Rb7 {[%clk 0:02:07]}  Nf1+ {[%clk 0:00:04]} 33. Kg2 {[%clk 0:02:07]}  Qh2+ {[%clk 0:00:03]} 34. Kxf1 {[%clk 0:02:08]}  Qg1+ {[%clk 0:00:02]} 35. Ke2 {[%clk 0:02:08]} 1-0


[Site "https://www.chess.com"]

[Event "Titled Tuesday Blitz July 4 Early 2023"]
[White "Ter-Sahakyan, Samvel"]
[Black "Ambartsumova, Karina"]
[WhiteFideId "13302531"]
[BlackFideId "4166299"]
[WhiteElo "2875"]
[BlackElo "2570"]
[Result "1-0"]
[Round "3"]
[TimeControl "180+2"]
[Date "2023.07.04"]
[WhiteClock "0:00:20"]
[BlackClock "0:00:03"]
[Board "56"]

1. d4 {[%clk 0:02:59]}  Nf6 {[%clk 0:02:59]} 2. c4 {[%clk 0:03:00]}  e6 {[%clk 0:02:59]} 3. Nf3 {[%clk 0:02:59]}  d5 {[%clk 0:02:59]} 4. g3 {[%clk 0:03:00]}  dxc4 {[%clk 0:02:57]} 5. Bg2 {[%clk 0:03:00]}  Nc6 {[%clk 0:02:57]} 6. O-O {[%clk 0:02:58]}  Rb8 {[%clk 0:02:54]} 7. a4 {[%clk 0:02:57]}  a6 {[%clk 0:02:51]} 8. a5 {[%clk 0:02:53]}  Bb4 {[%clk 0:02:42]} 9. Na3 {[%clk 0:02:48]}  Bxa5 {[%clk 0:02:28]} 10. Nxc4 {[%clk 0:02:48]}  Bb4 {[%clk 0:02:22]} 11. e4 {[%clk 0:02:32]}  O-O {[%clk 0:02:18]} 12. e5 {[%clk 0:02:14]}  Nd5 {[%clk 0:02:17]} 13. Ng5 {[%clk 0:02:13]}  h6 {[%clk 0:02:07]} 14. Ne4 {[%clk 0:02:11]}  b5 {[%clk 0:01:53]} 15. Ne3 {[%clk 0:02:11]}  Nce7 {[%clk 0:01:44]} 16. Nxd5 {[%clk 0:01:40]}  Nxd5 {[%clk 0:01:37]} 17. Qg4 {[%clk 0:01:39]}  Kh8 {[%clk 0:01:26]} 18. Qh5 {[%clk 0:01:39]}  f5 {[%clk 0:01:03]} 19. exf6 {[%clk 0:01:20]}  Nxf6 {[%clk 0:01:02]} 20. Nxf6 {[%clk 0:01:19]}  Qxf6 {[%clk 0:01:01]} 21. Be3 {[%clk 0:01:18]}  a5 {[%clk 0:00:50]} 22. Rfc1 {[%clk 0:01:15]}  Rf7 {[%clk 0:00:29]} 23. Rc2 {[%clk 0:00:56]}  Kg8 {[%clk 0:00:23]} 24. Be4 {[%clk 0:00:52]}  Bb7 {[%clk 0:00:20]} 25. Bxb7 {[%clk 0:00:46]}  Rxb7 {[%clk 0:00:21]} 26. Rc6 {[%clk 0:00:39]}  Qf5 {[%clk 0:00:19]} 27. Qe2 {[%clk 0:00:38]}  a4 {[%clk 0:00:16]} 28. Bf4 {[%clk 0:00:34]}  Re7 {[%clk 0:00:10]} 29. Rac1 {[%clk 0:00:28]}  Qd5 {[%clk 0:00:10]} 30. Bxc7 {[%clk 0:00:25]}  Qxd4 {[%clk 0:00:09]} 31. Be5 {[%clk 0:00:24]}  Qd5 {[%clk 0:00:06]} 32. Rc8+ {[%clk 0:00:25]}  Kf7 {[%clk 0:00:04]} 33. Rd1 {[%clk 0:00:21]}  Qb3 {[%clk 0:00:04]} 34. Rd3 {[%clk 0:00:21]}  Qa2 {[%clk 0:00:04]} 35. Qh5+ {[%clk 0:00:20]}  g6 {[%clk 0:00:03]} 36. Rf3# {[%clk 0:00:20]} 1-0


[Site "https://www.chess.com"]

[Event "Titled Tuesday Blitz July 4 Early 2023"]
[White "Perez Candelario, Manuel"]
[Black "Galchenko, Matvey"]
[WhiteFideId "2210622"]
[BlackFideId "24175480"]
[WhiteElo "2569"]
[BlackElo "2870"]
[Result "0-1"]
[Round "3"]
[TimeControl "180+2"]
[Date "2023.07.04"]
[WhiteClock "0:00:00"]
[BlackClock "0:00:03"]
[Board "57"]

1. e4 {[%clk 0:03:00]}  e6 {[%clk 0:02:59]} 2. d4 {[%clk 0:03:00]}  d5 {[%clk 0:03:00]} 3. Nc3 {[%clk 0:03:00]}  Bb4 {[%clk 0:03:01]} 4. exd5 {[%clk 0:02:58]}  exd5 {[%clk 0:03:01]} 5. Bd3 {[%clk 0:02:56]}  Nc6 {[%clk 0:03:02]} 6. a3 {[%clk 0:02:55]}  Ba5 {[%clk 0:03:01]} 7. Nf3 {[%clk 0:02:45]}  Nge7 {[%clk 0:02:58]} 8. O-O {[%clk 0:02:44]}  O-O {[%clk 0:02:57]} 9. h3 {[%clk 0:02:32]}  Bxc3 {[%clk 0:02:57]} 10. bxc3 {[%clk 0:02:31]}  Bf5 {[%clk 0:02:57]} 11. Re1 {[%clk 0:02:26]}  Re8 {[%clk 0:02:55]} 12. Bf4 {[%clk 0:02:05]}  f6 {[%clk 0:02:43]} 13. c4 {[%clk 0:01:55]}  Bxd3 {[%clk 0:02:39]} 14. Qxd3 {[%clk 0:01:54]}  dxc4 {[%clk 0:02:27]} 15. Qxc4+ {[%clk 0:01:55]}  Qd5 {[%clk 0:02:28]} 16. Qd3 {[%clk 0:01:46]}  Qd7 {[%clk 0:01:41]} 17. Qb3+ {[%clk 0:01:43]}  Kh8 {[%clk 0:01:35]} 18. Qxb7 {[%clk 0:01:30]}  Nxd4 {[%clk 0:01:12]} 19. Nxd4 {[%clk 0:01:29]}  Qxd4 {[%clk 0:01:13]} 20. Bg3 {[%clk 0:01:10]}  Nf5 {[%clk 0:00:51]} 21. Qxc7 {[%clk 0:01:06]}  Rec8 {[%clk 0:00:47]} 22. Qf4 {[%clk 0:01:05]}  Qxf4 {[%clk 0:00:43]} 23. Bxf4 {[%clk 0:01:06]}  Rxc2 {[%clk 0:00:44]} 24. Red1 {[%clk 0:01:01]}  Rc4 {[%clk 0:00:42]} 25. Bh2 {[%clk 0:00:52]}  Nd4 {[%clk 0:00:41]} 26. Kf1 {[%clk 0:00:45]}  Rac8 {[%clk 0:00:42]} 27. g4 {[%clk 0:00:38]}  Kg8 {[%clk 0:00:38]} 28. Kg2 {[%clk 0:00:37]}  Kf7 {[%clk 0:00:36]} 29. Rd3 {[%clk 0:00:34]}  Ra4 {[%clk 0:00:33]} 30. Rb1 {[%clk 0:00:29]}  Re8 {[%clk 0:00:28]} 31. Bd6 {[%clk 0:00:28]}  Ne6 {[%clk 0:00:22]} 32. Rb7+ {[%clk 0:00:26]}  Kg6 {[%clk 0:00:22]} 33. Re3 {[%clk 0:00:18]}  h5 {[%clk 0:00:18]} 34. f3 {[%clk 0:00:12]}  Rd4 {[%clk 0:00:15]} 35. Bg3 {[%clk 0:00:11]}  Rd2+ {[%clk 0:00:15]} 36. Kf1 {[%clk 0:00:11]}  a5 {[%clk 0:00:08]} 37. Ra7 {[%clk 0:00:11]}  Rd5 {[%clk 0:00:04]} 38. f4 {[%clk 0:00:10]}  hxg4 {[%clk 0:00:03]} 39. hxg4 {[%clk 0:00:09]}  Kh7 {[%clk 0:00:04]} 40. f5 {[%clk 0:00:09]}  Nc7 {[%clk 0:00:04]} 41. Rxe8 {[%clk 0:00:08]}  Nxe8 {[%clk 0:00:05]} 42. Be1 {[%clk 0:00:07]}  Rd4 {[%clk 0:00:04]} 43. Bxa5 {[%clk 0:00:05]}  Rxg4 {[%clk 0:00:04]} 44. Ke2 {[%clk 0:00:05]}  Nd6 {[%clk 0:00:04]} 45. Bb4 {[%clk 0:00:03]}  Nxf5 {[%clk 0:00:04]} 46. Kd3 {[%clk 0:00:03]}  Kh6 {[%clk 0:00:03]} 47. Bf8 {[%clk 0:00:02]}  Rd4+ {[%clk 0:00:03]} 48. Kc3 {[%clk 0:00:01]}  Rd8 {[%clk 0:00:04]} 49. a4 {[%clk 0:00:02]}  Rxf8 {[%clk 0:00:04]} 50. a5 {[%clk 0:00:02]}  Rc8+ {[%clk 0:00:02]} 51. Kd3 {[%clk 0:00:02]}  Nd6 {[%clk 0:00:03]} 52. Rd7 {[%clk 0:00:00]}  Nb5 {[%clk 0:00:03]} 0-1


[Site "https://www.chess.com"]

[Event "Titled Tuesday Blitz July 4 Early 2023"]
[White "Rottenwohrer Suarez, Juan"]
[Black "Dvirnyy, Danyyil"]
[WhiteFideId "32068182"]
[BlackFideId "817570"]
[WhiteElo "2504"]
[BlackElo "2761"]
[Result "0-1"]
[Round "3"]
[TimeControl "180+2"]
[Date "2023.07.04"]
[WhiteClock "0:00:00"]
[BlackClock "0:00:25"]
[Board "60"]

1. c4 {[%clk 0:03:00]}  g6 {[%clk 0:02:58]} 2. Nf3 {[%clk 0:02:44]}  Bg7 {[%clk 0:02:58]} 3. g3 {[%clk 0:02:45]}  c5 {[%clk 0:02:54]} 4. Bg2 {[%clk 0:02:45]}  Nc6 {[%clk 0:02:53]} 5. O-O {[%clk 0:02:45]}  e6 {[%clk 0:02:52]} 6. Nc3 {[%clk 0:02:43]}  Nge7 {[%clk 0:02:51]} 7. d4 {[%clk 0:02:42]}  cxd4 {[%clk 0:02:48]} 8. Nb5 {[%clk 0:02:42]}  d5 {[%clk 0:02:48]} 9. Nfxd4 {[%clk 0:02:41]}  O-O {[%clk 0:02:47]} 10. Nxc6 {[%clk 0:02:41]}  bxc6 {[%clk 0:02:47]} 11. Nc3 {[%clk 0:02:41]}  Ba6 {[%clk 0:02:42]} 12. cxd5 {[%clk 0:02:33]}  cxd5 {[%clk 0:02:43]} 13. Bg5 {[%clk 0:02:20]}  h6 {[%clk 0:02:42]} 14. Bf4 {[%clk 0:02:17]}  Rc8 {[%clk 0:02:41]} 15. Qa4 {[%clk 0:02:12]}  Qb6 {[%clk 0:02:38]} 16. Rab1 {[%clk 0:02:11]}  Nf5 {[%clk 0:02:25]} 17. Rfd1 {[%clk 0:01:59]}  Rc4 {[%clk 0:02:23]} 18. Qa3 {[%clk 0:01:57]}  Rfc8 {[%clk 0:02:12]} 19. e4 {[%clk 0:01:54]}  dxe4 {[%clk 0:02:10]} 20. Nxe4 {[%clk 0:01:55]}  Rc2 {[%clk 0:01:54]} 21. Rd2 {[%clk 0:01:16]}  Rc1+ {[%clk 0:01:49]} 22. Rd1 {[%clk 0:01:15]}  Rxb1 {[%clk 0:01:45]} 23. Rxb1 {[%clk 0:01:14]}  Rc2 {[%clk 0:01:39]} 24. g4 {[%clk 0:01:01]}  e5 {[%clk 0:01:07]} 25. Be3 {[%clk 0:00:38]}  Nxe3 {[%clk 0:01:05]} 26. Qxe3 {[%clk 0:00:39]}  Qxe3 {[%clk 0:00:58]} 27. fxe3 {[%clk 0:00:40]}  f5 {[%clk 0:00:58]} 28. gxf5 {[%clk 0:00:41]}  gxf5 {[%clk 0:00:58]} 29. Nd6 {[%clk 0:00:39]}  f4 {[%clk 0:00:46]} 30. exf4 {[%clk 0:00:39]}  exf4 {[%clk 0:00:46]} 31. Bd5+ {[%clk 0:00:35]}  Kf8 {[%clk 0:00:43]} 32. Nf5 {[%clk 0:00:29]}  Bxb2 {[%clk 0:00:41]} 33. Be4 {[%clk 0:00:16]}  Rd2 {[%clk 0:00:41]} 34. Re1 {[%clk 0:00:10]}  Be2 {[%clk 0:00:39]} 35. Kf2 {[%clk 0:00:02]}  Bg4+ {[%clk 0:00:36]} 36. Kg1 {[%clk 0:00:03]}  h5 {[%clk 0:00:32]} 37. Nh4 {[%clk 0:00:03]}  Bd4+ {[%clk 0:00:32]} 38. Kh1 {[%clk 0:00:03]}  Bf2 {[%clk 0:00:31]} 39. Rf1 {[%clk 0:00:00]}  Bxh4 {[%clk 0:00:25]} 0-1


[Site "https://www.chess.com"]

[Event "Titled Tuesday Blitz July 4 Early 2023"]
[White "Lorparizangeneh, Shahin"]
[Black "Kovalevsky, Stanislav"]
[WhiteFideId "12521604"]
[BlackFideId "13508598"]
[WhiteElo "2690"]
[BlackElo "2469"]
[Result "0-1"]
[Round "3"]
[TimeControl "180+2"]
[Date "2023.07.04"]
[WhiteClock "0:00:57"]
[BlackClock "0:01:38"]
[Board "62"]

1. e4 {[%clk 0:03:00]}  e6 {[%clk 0:02:59]} 2. d4 {[%clk 0:03:00]}  d5 {[%clk 0:03:00]} 3. e5 {[%clk 0:03:00]}  c5 {[%clk 0:03:00]} 4. c3 {[%clk 0:03:00]}  Nc6 {[%clk 0:03:01]} 5. Nf3 {[%clk 0:03:01]}  cxd4 {[%clk 0:03:01]} 6. cxd4 {[%clk 0:03:01]}  f6 {[%clk 0:03:02]} 7. Bd3 {[%clk 0:02:54]}  fxe5 {[%clk 0:03:02]} 8. Nxe5 {[%clk 0:02:54]}  Nxe5 {[%clk 0:03:02]} 9. dxe5 {[%clk 0:02:55]}  Bb4+ {[%clk 0:02:53]} 10. Kf1 {[%clk 0:02:40]}  Ne7 {[%clk 0:02:51]} 11. Bg5 {[%clk 0:02:34]}  O-O {[%clk 0:02:41]} 12. Qh5 {[%clk 0:02:33]}  g6 {[%clk 0:02:18]} 13. Qh4 {[%clk 0:02:32]}  Bc5 {[%clk 0:02:12]} 14. Bf6 {[%clk 0:02:11]}  Qb6 {[%clk 0:02:12]} 15. Nd2 {[%clk 0:02:00]}  Qxb2 {[%clk 0:01:48]} 16. Rd1 {[%clk 0:01:53]}  Nf5 {[%clk 0:01:47]} 17. Qg5 {[%clk 0:00:57]}  Qd4 {[%clk 0:01:38]} 0-1


[Site "https://www.chess.com"]

[Event "Titled Tuesday Blitz July 4 Early 2023"]
[White "Grossboss19"]
[Black "Amburgy, Ryan"]
[BlackFideId "30924820"]
[WhiteElo "2421"]
[BlackElo "2685"]
[Result "0-1"]
[Round "3"]
[TimeControl "180+2"]
[Date "2023.07.04"]
[WhiteClock "0:00:00"]
[BlackClock "0:00:36"]
[Board "63"]

1. c4 {[%clk 0:03:00]}  e6 {[%clk 0:02:59]} 2. Nc3 {[%clk 0:02:58]}  Nf6 {[%clk 0:02:59]} 3. e4 {[%clk 0:02:58]}  c5 {[%clk 0:02:59]} 4. Nf3 {[%clk 0:02:47]}  Nc6 {[%clk 0:02:57]} 5. d4 {[%clk 0:02:44]}  cxd4 {[%clk 0:02:52]} 6. Nxd4 {[%clk 0:02:44]}  Bb4 {[%clk 0:02:52]} 7. Nxc6 {[%clk 0:02:21]}  bxc6 {[%clk 0:02:51]} 8. Bd3 {[%clk 0:02:21]}  Bxc3+ {[%clk 0:02:16]} 9. bxc3 {[%clk 0:02:20]}  Qa5 {[%clk 0:02:16]} 10. Qc2 {[%clk 0:01:59]}  Ba6 {[%clk 0:02:11]} 11. O-O {[%clk 0:01:58]}  O-O {[%clk 0:02:08]} 12. Re1 {[%clk 0:01:52]}  d6 {[%clk 0:02:01]} 13. c5 {[%clk 0:01:14]}  Bxd3 {[%clk 0:01:50]} 14. Qxd3 {[%clk 0:01:15]}  Qxc5 {[%clk 0:01:36]} 15. Be3 {[%clk 0:01:12]}  Qa3 {[%clk 0:01:35]} 16. Rad1 {[%clk 0:00:57]}  Rfd8 {[%clk 0:01:23]} 17. e5 {[%clk 0:00:45]}  Nd5 {[%clk 0:01:23]} 18. Bg5 {[%clk 0:00:45]}  Rd7 {[%clk 0:01:05]} 19. exd6 {[%clk 0:00:43]}  Qxc3 {[%clk 0:01:01]} 20. Qxc3 {[%clk 0:00:29]}  Nxc3 {[%clk 0:01:02]} 21. Rc1 {[%clk 0:00:28]}  Nb5 {[%clk 0:00:57]} 22. Rxc6 {[%clk 0:00:27]}  Rxd6 {[%clk 0:00:57]} 23. Rxd6 {[%clk 0:00:25]}  Nxd6 {[%clk 0:00:58]} 24. Rd1 {[%clk 0:00:25]}  Ne4 {[%clk 0:00:57]} 25. Be3 {[%clk 0:00:25]}  Nf6 {[%clk 0:00:56]} 26. Bxa7 {[%clk 0:00:19]}  h6 {[%clk 0:00:52]} 27. Bd4 {[%clk 0:00:15]}  Rxa2 {[%clk 0:00:52]} 28. Bxf6 {[%clk 0:00:16]}  gxf6 {[%clk 0:00:53]} 29. h4 {[%clk 0:00:16]}  f5 {[%clk 0:00:51]} 30. g3 {[%clk 0:00:17]}  Ra4 {[%clk 0:00:51]} 31. Kg2 {[%clk 0:00:15]}  f4 {[%clk 0:00:51]} 32. Kf3 {[%clk 0:00:15]}  fxg3 {[%clk 0:00:52]} 33. fxg3 {[%clk 0:00:16]}  Kg7 {[%clk 0:00:52]} 34. Rd3 {[%clk 0:00:15]}  e5 {[%clk 0:00:50]} 35. Re3 {[%clk 0:00:15]}  Kf6 {[%clk 0:00:50]} 36. Rb3 {[%clk 0:00:15]}  Ra6 {[%clk 0:00:49]} 37. Ke4 {[%clk 0:00:14]}  Ke6 {[%clk 0:00:50]} 38. Kf3 {[%clk 0:00:12]}  f5 {[%clk 0:00:50]} 39. g4 {[%clk 0:00:11]}  f4 {[%clk 0:00:48]} 40. Ke4 {[%clk 0:00:09]}  Ra4+ {[%clk 0:00:49]} 41. Kf3 {[%clk 0:00:09]}  Kd5 {[%clk 0:00:47]} 42. Rb5+ {[%clk 0:00:09]}  Kd4 {[%clk 0:00:48]} 43. Rb3 {[%clk 0:00:09]}  Rc4 {[%clk 0:00:43]} 44. g5 {[%clk 0:00:08]}  hxg5 {[%clk 0:00:40]} 45. hxg5 {[%clk 0:00:09]}  Rc1 {[%clk 0:00:40]} 46. Rb4+ {[%clk 0:00:06]}  Kc5 {[%clk 0:00:40]} 47. Rb8 {[%clk 0:00:04]}  Rg1 {[%clk 0:00:40]} 48. Rg8 {[%clk 0:00:02]}  Kd5 {[%clk 0:00:39]} 49. g6 {[%clk 0:00:02]}  Rg3+ {[%clk 0:00:38]} 50. Kf2 {[%clk 0:00:00]}  Ke6 {[%clk 0:00:36]} 0-1


[Site "https://www.chess.com"]

[Event "Titled Tuesday Blitz July 4 Early 2023"]
[White "Timerkhanov, Alexander"]
[Black "Romero Ruscalleda, Josep"]
[WhiteFideId "24177938"]
[BlackFideId "2231859"]
[WhiteElo "2675"]
[BlackElo "2421"]
[Result "1-0"]
[Round "3"]
[TimeControl "180+2"]
[Date "2023.07.04"]
[WhiteClock "0:02:08"]
[BlackClock "0:00:08"]
[Board "64"]

1. d4 {[%clk 0:03:00]}  g6 {[%clk 0:03:00]} 2. e4 {[%clk 0:03:00]}  Bg7 {[%clk 0:03:01]} 3. Nc3 {[%clk 0:03:00]}  d6 {[%clk 0:03:01]} 4. Bg5 {[%clk 0:03:00]}  a6 {[%clk 0:03:00]} 5. a4 {[%clk 0:02:59]}  Nc6 {[%clk 0:02:59]} 6. d5 {[%clk 0:02:55]}  Na7 {[%clk 0:02:56]} 7. h4 {[%clk 0:02:52]}  h6 {[%clk 0:02:54]} 8. Be3 {[%clk 0:02:52]}  c5 {[%clk 0:02:54]} 9. Be2 {[%clk 0:02:49]}  Bd7 {[%clk 0:02:52]} 10. a5 {[%clk 0:02:48]}  Nb5 {[%clk 0:02:46]} 11. Nxb5 {[%clk 0:02:38]}  axb5 {[%clk 0:02:42]} 12. c3 {[%clk 0:02:29]}  Rxa5 {[%clk 0:02:40]} 13. Rc1 {[%clk 0:02:27]}  Nf6 {[%clk 0:02:34]} 14. Qc2 {[%clk 0:02:24]}  O-O {[%clk 0:02:21]} 15. f4 {[%clk 0:02:23]}  Qa8 {[%clk 0:01:57]} 16. h5 {[%clk 0:02:21]}  gxh5 {[%clk 0:01:48]} 17. Bxh5 {[%clk 0:02:21]}  Nxh5 {[%clk 0:01:44]} 18. Rxh5 {[%clk 0:02:20]}  Ra1 {[%clk 0:01:43]} 19. f5 {[%clk 0:02:19]}  Rxc1+ {[%clk 0:01:41]} 20. Qxc1 {[%clk 0:02:20]}  Qa4 {[%clk 0:01:35]} 21. Bxh6 {[%clk 0:02:14]}  Qxe4+ {[%clk 0:01:22]} 22. Ne2 {[%clk 0:02:14]}  Qxg2 {[%clk 0:00:42]} 23. Bxg7 {[%clk 0:02:12]}  Bxf5 {[%clk 0:00:08]} 24. Rh8+ {[%clk 0:02:08]} 1-0


[Site "https://www.chess.com"]